fUST/lending_fUST_20241205
["ID","MTS","AMOUNT","RATE_DAILY","PERIOD"]
[344367408,1733381439533,-500.0,0.00021917,2]
[344367413,1733381439599,-504.64783907,0.00021917,2]
[344367414,1733381439610,-369.15309112,0.00021917,2]
[344367415,1733381439621,-501.29739928,0.00021917,2]
[344367416,1733381439631,-500.0,0.00021917,2]
[344367418,1733381439642,-514.9591044,0.00021917,2]
[344367419,1733381439652,-530.9539688,0.00021917,2]
[344367422,1733381439662,-507.39372509,0.00021917,2]
[344367424,1733381439671,-520.74366134,0.00021917,2]
[344367426,1733381439681,-500.0,0.00021917,2]
[344367428,1733381439691,-500.0,0.00021917,2]
[344367430,1733381439701,-500.0,0.00021917,2]
[344367432,1733381439710,-500.0,0.00021917,2]
[344367433,1733381439720,-500.0,0.00021917,2]
[344367435,1733381439729,-1537.63,0.00021917,2]
[344367436,1733381439738,-501.62384835,0.00021917,2]
[344367438,1733381439748,-500.0,0.00021917,2]
[344367439,1733381439758,-500.0,0.00021917,2]
[344367440,1733381439768,-507.65072593,0.00021917,2]
[344367441,1733381439777,-502.4312289,0.00021917,2]
[344367442,1733381439787,-503.02281552,0.00021917,2]
[344367443,1733381439796,-791.426322,0.00021917,2]
[344367444,1733381439806,-791.426322,0.00021917,2]
[344367445,1733381439815,-791.426322,0.00021917,2]
[344367446,1733381439828,-791.426322,0.00021917,2]
[344367447,1733381439838,-791.426322,0.00021917,2]
[344367449,1733381439848,-500.0,0.00021917,2]
[344367451,1733381439858,-791.426322,0.00021917,2]
[344367452,1733381439867,-500.0,0.00021917,2]
[344367454,1733381439878,-507.87396761,0.00021917,2]
[344367455,1733381439887,-791.426322,0.00021917,2]
[344367456,1733381439898,-503.07265445,0.00021917,2]
[344367457,1733381439908,-791.426322,0.00021917,2]
[344367458,1733381439918,-500.0,0.00021917,2]
[344367459,1733381439929,-500.0,0.00021917,2]
[344367460,1733381439939,-791.426322,0.00021917,2]
[344367461,1733381439949,-570.18,0.00021917,2]
[344367462,1733381439959,-791.426322,0.00021917,2]
[344367463,1733381439969,-500.0,0.00021917,2]
[344367464,1733381439978,-791.426322,0.00021917,2]
[344367465,1733381439989,-791.426322,0.00021917,2]
[344367466,1733381439998,-791.426322,0.00021917,2]
[344367467,1733381440009,-791.426322,0.00021917,2]
[344367468,1733381440018,-500.0,0.00021917,2]
[344367469,1733381440028,-791.426322,0.00021917,2]
[344367470,1733381440037,-791.42631865,0.00021917,2]
[344367471,1733381440047,-500.0,0.00021917,2]
[344367472,1733381440057,-500.0,0.00021917,2]
[344367473,1733381440066,-502.27009913,0.00021917,2]
[344367474,1733381440078,-500.0,0.00021917,2]
[344367475,1733381440088,-500.0,0.00021917,2]
[344367476,1733381440098,-500.0,0.00021917,2]
[344367477,1733381440108,-539.65065411,0.00021917,2]
[344367478,1733381440118,-625.23775716,0.00021917,2]
[344367479,1733381440128,-500.0,0.00021917,2]
[344367480,1733381440137,-485.13271045,0.00021917,2]
[344367481,1733381440146,-870.906184,0.00021917,2]
[344367482,1733381440156,-500.0,0.00021917,2]
[344367483,1733381440166,-870.906184,0.00021917,2]
[344367484,1733381440175,-870.906184,0.00021917,2]
[344367485,1733381440185,-507.26785044,0.00021917,2]
[344367486,1733381440194,-870.906184,0.00021917,2]
[344367487,1733381440203,-247.23200561,0.00021917,2]
[344367488,1733381440212,-500.0,0.00021917,2]
[344367489,1733381440221,-500.0,0.00021917,2]
[344367490,1733381440230,-500.0,0.00021917,2]
[344367491,1733381440240,-500.0,0.00021917,2]
[344367492,1733381440249,-870.906184,0.00021917,2]
[344367493,1733381440258,-870.906184,0.00021917,2]
[344367494,1733381440267,-870.906184,0.00021917,2]
[344367495,1733381440277,-870.906184,0.00021917,2]
[344367496,1733381440286,-870.906184,0.00021917,2]
[344367497,1733381440296,-870.906184,0.00021917,2]
[344367498,1733381440305,-870.906184,0.00021917,2]
[344367499,1733381440320,-500.0,0.00021917,2]
[344367500,1733381440330,-870.906184,0.00021917,2]
[344367501,1733381440339,-870.906184,0.00021917,2]
[344367502,1733381440349,-870.906184,0.00021917,2]
[344367503,1733381440358,-870.906184,0.00021917,2]
[344367504,1733381440368,-870.906182,0.00021917,2]
[344367505,1733381440377,-501.63550024,0.00021917,2]
[344367506,1733381440387,-500.0,0.00021917,2]
[344367507,1733381440396,-500.0,0.00021917,2]
[344367508,1733381440405,-507.09442332,0.00021917,2]
[344367509,1733381440415,-500.0,0.00021917,2]
[344367510,1733381440424,-519.30178561,0.00021917,2]
[344367511,1733381440434,-500.0,0.00021917,2]
[344367512,1733381440443,-503.85914241,0.00021917,2]
[344367513,1733381440453,-503.05972356,0.00021917,2]
[344367514,1733381440462,-500.96620062,0.00021917,2]
[344367515,1733381440472,-502.68439752,0.00021917,2]
[344367516,1733381440482,-503.08315026,0.00021917,2]
[344367517,1733381440491,-603.53842217,0.00021917,2]
[344367518,1733381440501,-500.0,0.00021917,2]
[344367519,1733381440561,-500.0,0.00021917,2]
[344367520,1733381440579,-500.0,0.00021917,2]
[344367521,1733381440589,-500.0,0.00021917,2]
[344367522,1733381440600,-500.0,0.00021917,2]
[344367523,1733381440611,-500.0,0.00021917,2]
[344367524,1733381440620,-500.0,0.00021917,2]
[344367525,1733381440630,-506.89133073,0.00021917,2]
[344367526,1733381440639,-501.68906462,0.00021917,2]
[344367527,1733381440649,-507.64471941,0.00021917,2]
[344367528,1733381440659,-500.0,0.00021917,2]
[344367529,1733381440668,-500.0,0.00021917,2]
[344367530,1733381440677,-500.0,0.00021917,2]
[344367531,1733381440687,-500.80089018,0.00021917,2]
[344367532,1733381440697,-500.0,0.00021917,2]
[344367533,1733381440706,-500.0,0.00021917,2]
[344367534,1733381440716,-500.0,0.00021917,2]
[344367535,1733381440726,-339.93833507,0.00021917,2]
[344367536,1733381440736,-500.0,0.00021917,2]
[344367537,1733381440745,-500.0,0.00021917,2]
[344367538,1733381440755,-592.5,0.00021917,2]
[344367539,1733381440765,-500.0,0.00021917,2]
[344367540,1733381440775,-500.0,0.00021917,2]
[344367541,1733381440784,-503.87102896,0.00021917,2]
[344367542,1733381440794,-500.0,0.00021917,2]
[344367543,1733381440804,-477.63099693,0.00021917,2]
[344367544,1733381440814,-500.0,0.00021917,2]
[344367545,1733381440827,-500.0,0.00021917,2]
[344367546,1733381440837,-2096.26,0.00021917,2]
[344367547,1733381440846,-772.05,0.00021917,2]
[344367548,1733381440855,-504.53647792,0.00021917,2]
[344367549,1733381440865,-509.72,0.00021917,2]
[344367550,1733381440875,-500.0,0.00021917,2]
[344367551,1733381440885,-504.04437179,0.00021917,2]
[344367552,1733381440895,-500.0,0.00021917,2]
[344367553,1733381440905,-996.25,0.00021917,2]
[344367554,1733381440914,-500.0,0.00021917,2]
[344367555,1733381440924,-500.0,0.00021917,2]
[344367556,1733381440934,-500.0,0.00021917,2]
[344367557,1733381440944,-511.70224761,0.00021917,2]
[344367558,1733381440953,-500.0,0.00021917,2]
[344367559,1733381440963,-377.28387781,0.00021917,2]
[344367560,1733381440973,-500.0,0.00021917,2]
[344367561,1733381440982,-500.0,0.00021917,2]
[344367562,1733381440992,-500.0,0.00021917,2]
[344367563,1733381441016,-500.0,0.00021917,2]
[344367564,1733381441033,-500.0,0.00021917,2]
[344367565,1733381441051,-500.0,0.00021917,2]
[344367566,1733381441073,-502.82119646,0.00021917,2]
[344367567,1733381441092,-666.26,0.00021917,2]
[344367568,1733381441111,-500.0,0.00021917,2]
[344367569,1733381441128,-1060.62,0.00021917,2]
[344367570,1733381441144,-500.0,0.00021917,2]
[344367571,1733381441164,-500.0,0.00021917,2]
[344367572,1733381441184,-202.71366912,0.00021917,2]
[344367573,1733381441201,-611.31,0.00021917,2]
[344367574,1733381441214,-554.43206206,0.00021917,2]
[344367575,1733381441234,-505.22782584,0.00021917,2]
[344367576,1733381441248,-503.42630283,0.00021917,2]
[344367577,1733381441263,-501.70061839,0.00021917,2]
[344367578,1733381441277,-500.0,0.00021917,2]
[344367579,1733381441292,-504.53411051,0.00021917,2]
[344367580,1733381441306,-500.0,0.00021917,2]
[344367581,1733381441321,-2210.05,0.00021917,2]
[344367582,1733381441335,-502.71462984,0.00021917,2]
[344367583,1733381441350,-500.0,0.00021917,2]
[344367584,1733381441365,-562.92388226,0.00021917,2]
[344367585,1733381441379,-500.0,0.00021917,2]
[344367586,1733381441393,-500.0,0.00021917,2]
[344367587,1733381441408,-502.72750242,0.00021917,2]
[344367588,1733381441422,-1001.26,0.00021917,2]
[344367589,1733381441437,-500.0,0.00021917,2]
[344367590,1733381441451,-501.58372116,0.00021917,2]
[344367591,1733381441465,-509.75486538,0.00021917,2]
[344367592,1733381441479,-500.0,0.00021917,2]
[344367593,1733381441494,-500.0,0.00021917,2]
[344367594,1733381441509,-502.93775745,0.00021917,2]
[344367595,1733381441523,-500.0,0.00021917,2]
[344367596,1733381441538,-500.0,0.00021917,2]
[344367597,1733381441553,-500.0,0.00021917,2]
[344367598,1733381441569,-632.74,0.00021917,2]
[344367599,1733381441584,-501.27004685,0.00021917,2]
[344367600,1733381441599,-500.0,0.00021917,2]
[344367601,1733381441614,-504.64870493,0.00021917,2]
[344367602,1733381441628,-503.33530737,0.00021917,2]
[344367603,1733381441645,-500.0,0.00021917,2]
[344367604,1733381441656,-500.0,0.00021917,2]
[344367605,1733381441753,-500.0,0.00021917,2]
[344367606,1733381441769,-500.0,0.00021917,2]
[344367607,1733381441778,-500.0,0.00021917,2]
[344367608,1733381441788,-503.46795759,0.00021917,2]
[344367609,1733381441797,-500.0,0.00021917,2]
[344367610,1733381441806,-500.0,0.00021917,2]
[344367611,1733381441815,-500.0,0.00021917,2]
[344367612,1733381441829,-500.0,0.00021917,2]
[344367613,1733381441841,-500.0,0.00021917,2]
[344367614,1733381441851,-513.50857287,0.00021917,2]
[344367615,1733381441860,-1143.72,0.00021917,2]
[344367616,1733381441870,-501.45486919,0.00021917,2]
[344367617,1733381441879,-500.0,0.00021917,2]
[344367618,1733381441889,-529.08,0.00021917,2]
[344367619,1733381441898,-500.0,0.00021917,2]
[344367620,1733381441907,-500.0,0.00021917,2]
[344367621,1733381441917,-500.0,0.00021917,2]
[344367622,1733381441927,-500.0,0.00021917,2]
[344367623,1733381441936,-504.34589395,0.00021917,2]
[344367624,1733381441945,-372.93888466,0.00021917,2]
[344367625,1733381442100,-127.06111534,0.00021917,2]
[344367626,1733381442110,-500.0,0.00021917,2]
[344367627,1733381442119,-503.02712429,0.00021917,2]
[344367628,1733381442129,-500.0,0.00021917,2]
[344367629,1733381442138,-571.49,0.00021917,2]
[344367630,1733381442147,-500.0,0.00021917,2]
[344367631,1733381442156,-500.0,0.00021917,2]
[344367632,1733381442166,-500.0,0.00021917,2]
[344367633,1733381442175,-500.0,0.00021917,2]
[344367634,1733381442184,-500.0,0.00021917,2]
[344367635,1733381442194,-500.0,0.00021917,2]
[344367636,1733381442203,-503.01473835,0.00021917,2]
[344367637,1733381442213,-501.32132588,0.00021917,2]
[344367638,1733381442222,-1043.63,0.00021917,2]
[344367639,1733381442232,-487.11671744,0.00021917,2]
[344367640,1733381442242,-500.0,0.00021917,2]
[344367641,1733381442252,-500.0,0.00021917,2]
[344367642,1733381442261,-502.73283702,0.00021917,2]
[344367643,1733381442271,-500.0,0.00021917,2]
[344367644,1733381442279,-151.125563,0.00021918,2]
[344367645,1733381442289,-1167.3500576,0.00021921,2]
[344367646,1733381442298,-209.756238,0.00021955,2]
[344367647,1733381442308,-500.0,0.00021973,2]
[344367648,1733381442319,-500.0,0.00021973,2]
[344367649,1733381442328,-500.0,0.00021973,2]
[344367650,1733381442338,-528.41710806,0.00021973,2]
[344367651,1733381442347,-500.0,0.00021973,2]
[344367652,1733381442357,-264.42798683,0.00021973,2]
[344367653,1733381442366,-500.29954431,0.00021973,2]
[344367654,1733381442375,-516.73571809,0.00021973,2]
[344367655,1733381442384,-151.0,0.00022,9]
[344367656,1733381442394,-325.0,0.00022,2]
[344367657,1733381442404,-203.0,0.00022,2]
[344367658,1733381442413,-157.0,0.00022,2]
[344367660,1733381442424,-9424.31834042,0.0002201,16]
[344367662,1733381442433,-150.01,0.00022142,2]
[344367663,1733381442442,-2276.23169183,0.00022142,2]
[344367664,1733381442452,-209.756238,0.00022153,2]
[344367665,1733381442461,-1107.36318772,0.0002216,2]
[344367666,1733381442471,-500.0,0.00022173,2]
[344367667,1733381442480,-266.65371498,0.00022173,2]
[344367668,1733381442490,-200.50035974,0.00022173,2]
[344367670,1733381442499,-259.89248991,0.00022173,2]
[344367671,1733381442508,-334.26382218,0.00022173,2]
[344367672,1733381442517,-323.14122132,0.00022173,2]
[344367673,1733381442527,-500.69198068,0.00022173,2]
[344367674,1733381442536,-160.0,0.0002219,2]
[344367675,1733381442545,-502.33100914,0.00022191,2]
[344367676,1733381442554,-500.0,0.00022191,2]
[344367677,1733381442565,-637.03907453,0.00022191,2]
[344367678,1733381442577,-500.0,0.00022191,2]
[344367679,1733381442587,-245.75137155,0.00022191,2]
[344367680,1733381442597,-508.60543267,0.00022191,2]
[344367681,1733381442607,-500.0,0.00022191,2]
[344367682,1733381442616,-500.0,0.00022191,2]
[344367683,1733381442625,-500.0,0.00022191,2]
[344367684,1733381442635,-500.0,0.00022191,2]
[344367685,1733381442646,-500.0,0.00022191,2]
[344367687,1733381442655,-499.25668606,0.00022191,2]
[344367689,1733381442664,-418.00557517,0.00022191,2]
[344367691,1733381442674,-500.0,0.00022191,2]
[344367693,1733381442684,-500.0,0.00022191,2]
[344367695,1733381442693,-502.15737777,0.00022191,2]
[344367697,1733381442703,-563.68,0.00022191,2]
[344367699,1733381442713,-500.0,0.00022191,2]
[344367701,1733381442723,-500.0,0.00022191,2]
[344367702,1733381442732,-500.0,0.00022191,2]
[344367703,1733381442743,-500.0,0.00022191,2]
[344367704,1733381442752,-500.0,0.00022191,2]
[344367705,1733381442762,-500.0,0.00022191,2]
[344367706,1733381442771,-502.6643151,0.00022191,2]
[344367707,1733381442781,-500.0,0.00022191,2]
[344367708,1733381442790,-503.78930148,0.00022191,2]
[344367709,1733381442799,-484.17034977,0.00022191,2]
[344367710,1733381442808,-500.0,0.00022191,2]
[344367711,1733381442821,-500.0,0.00022191,2]
[344367712,1733381442831,-500.0,0.00022191,2]
[344367713,1733381442841,-500.0,0.00022191,2]
[344367714,1733381442851,-500.0,0.00022191,2]
[344367716,1733381442861,-500.0,0.00022191,2]
[344367718,1733381442871,-500.0,0.00022191,2]
[344367720,1733381442880,-500.0,0.00022191,2]
[344367722,1733381442890,-500.0,0.00022191,2]
[344367724,1733381442900,-500.0,0.00022191,2]
[344367725,1733381442910,-500.0,0.00022191,2]
[344367731,1733381442992,-555.58339447,0.00022191,2]
[344367733,1733381443002,-500.0,0.00022191,2]
[344367735,1733381443011,-475.88866876,0.00022191,2]
[344367736,1733381443021,-500.0,0.00022191,2]
[344367737,1733381443030,-500.0,0.00022191,2]
[344367739,1733381443039,-505.10157609,0.00022191,2]
[344367741,1733381443049,-501.86970582,0.00022191,2]
[344367742,1733381443058,-502.60776789,0.00022191,2]
[344367743,1733381443067,-508.10512909,0.00022191,2]
[344367744,1733381443080,-592.79,0.00022191,2]
[344367745,1733381443090,-500.0,0.00022191,2]
[344367746,1733381443100,-500.0,0.00022191,2]
[344367747,1733381443110,-513.40695836,0.00022191,2]
[344367748,1733381443119,-500.0,0.00022191,2]
[344367750,1733381443130,-500.0,0.00022191,2]
[344367751,1733381443140,-500.0,0.00022191,2]
[344367752,1733381443150,-500.0,0.00022191,2]
[344367753,1733381443161,-507.02384289,0.00022191,2]
[344367754,1733381443171,-500.0,0.00022191,2]
[344367755,1733381443180,-568.44,0.00022191,2]
[344367756,1733381443190,-526.92067014,0.00022191,2]
[344367757,1733381443199,-500.0,0.00022191,2]
[344367758,1733381443209,-500.0,0.00022191,2]
[344367759,1733381443218,-641.17505276,0.00022191,2]
[344367760,1733381443228,-500.0,0.00022191,2]
[344367761,1733381443238,-500.0,0.00022191,2]
[344367762,1733381443247,-500.0,0.00022191,2]
[344367763,1733381443257,-500.0,0.00022191,2]
[344367764,1733381443267,-500.0,0.00022191,2]
[344367765,1733381443276,-500.0,0.00022191,2]
[344367766,1733381443286,-524.26457176,0.00022191,2]
[344367767,1733381443295,-500.0,0.00022191,2]
[344367768,1733381443304,-500.0,0.00022191,2]
[344367769,1733381443314,-500.0,0.00022191,2]
[344367770,1733381443326,-168.07127385,0.00022191,2]
[344367771,1733381443335,-536.00540619,0.00022191,2]
[344367772,1733381443345,-500.0,0.00022191,2]
[344367773,1733381443355,-500.0,0.00022191,2]
[344367774,1733381443364,-522.53155177,0.00022191,2]
[344367775,1733381443374,-497.14596091,0.00022191,2]
[344367776,1733381443383,-500.0,0.00022191,2]
[344367777,1733381443392,-541.59848115,0.00022191,2]
[344367778,1733381443402,-500.0,0.00022191,2]
[344367779,1733381443411,-264.55613453,0.00022191,2]
[344367780,1733381443421,-604.01,0.00022191,2]
[344367781,1733381443431,-387.54793041,0.00022191,2]
[344367782,1733381443440,-500.0,0.00022191,2]
[344367783,1733381443449,-500.0,0.00022191,2]
[344367784,1733381443459,-500.0,0.00022191,2]
[344367785,1733381443468,-500.0,0.00022191,2]
[344367786,1733381443477,-504.68013022,0.00022191,2]
[344367787,1733381443487,-500.0,0.00022191,2]
[344367788,1733381443496,-500.0,0.00022191,2]
[344367789,1733381443505,-158.94225814,0.00022191,2]
[344367790,1733381443514,-500.0,0.00022191,2]
[344367791,1733381443524,-505.17319599,0.00022191,2]
[344367792,1733381443534,-510.79600684,0.00022191,2]
[344367793,1733381443543,-500.0,0.00022191,2]
[344367794,1733381443553,-500.0,0.00022191,2]
[344367795,1733381443563,-500.0,0.00022191,2]
[344367796,1733381443577,-537.4180263,0.00022191,2]
[344367797,1733381443587,-500.0,0.00022191,2]
[344367798,1733381443597,-513.30527404,0.00022191,2]
[344367799,1733381443606,-1002.98586278,0.00022191,5]
[344367800,1733381443616,-500.0,0.00022191,2]
[344367801,1733381443625,-500.0,0.00022191,2]
[344367802,1733381443635,-500.0,0.00022191,2]
[344367803,1733381443648,-500.0,0.00022191,2]
[344367804,1733381443662,-520.24580986,0.00022191,2]
[344367805,1733381443673,-500.0,0.00022191,2]
[344367806,1733381443682,-518.72693231,0.00022191,2]
[344367807,1733381443692,-515.19099496,0.00022191,2]
[344367808,1733381443701,-512.30285019,0.00022191,2]
[344367809,1733381443711,-508.73849655,0.00022191,2]
[344367810,1733381443720,-500.0,0.00022191,2]
[344367811,1733381443730,-601.42,0.00022191,2]
[344367812,1733381443739,-500.0,0.00022191,2]
[344367813,1733381443749,-605.92455255,0.00022191,2]
[344367814,1733381443759,-500.0,0.00022191,2]
[344367815,1733381443768,-500.0,0.00022191,2]
[344367816,1733381443777,-500.0,0.00022191,2]
[344367817,1733381443787,-500.0,0.00022191,2]
[344367818,1733381443797,-500.0,0.00022191,2]
[344367819,1733381443806,-503.74637403,0.00022191,2]
[344367820,1733381443816,-521.31206508,0.00022191,2]
[344367821,1733381443828,-508.24965315,0.00022191,2]
[344367822,1733381443837,-526.67133795,0.00022191,2]
[344367823,1733381443847,-502.91414433,0.00022191,2]
[344367824,1733381443856,-500.0,0.00022191,2]
[344367825,1733381443867,-500.0,0.00022191,2]
[344367826,1733381443876,-490.53905682,0.00022191,2]
[344367827,1733381443886,-500.0,0.00022191,2]
[344367828,1733381443895,-500.0,0.00022191,2]
[344367829,1733381443905,-512.244189,0.00022191,2]
[344367830,1733381443915,-503.48174426,0.00022191,2]
[344367831,1733381443925,-500.0,0.00022191,2]
[344367832,1733381443935,-506.76153007,0.00022191,2]
[344367833,1733381443944,-500.0,0.00022191,2]
[344367834,1733381443954,-500.0,0.00022191,2]
[344367835,1733381443963,-500.0,0.00022191,2]
[344367836,1733381443973,-509.33619401,0.00022191,2]
[344367837,1733381443983,-500.0,0.00022191,2]
[344367838,1733381443992,-500.0,0.00022191,2]
[344367839,1733381444002,-500.0,0.00022191,2]
[344367840,1733381444011,-500.0,0.00022191,2]
[344367841,1733381444021,-500.0,0.00022191,2]
[344367842,1733381444031,-509.20707211,0.00022191,2]
[344367843,1733381444040,-500.0,0.00022191,2]
[344367844,1733381444050,-500.0,0.00022191,2]
[344367845,1733381444059,-501.94656714,0.00022191,2]
[344367846,1733381444070,-500.0,0.00022191,2]
[344367847,1733381444080,-500.0,0.00022191,2]
[344367848,1733381444089,-575.57290119,0.00022191,2]
[344367849,1733381444098,-504.43901214,0.00022191,2]
[344367850,1733381444108,-500.0,0.00022191,2]
[344367851,1733381444117,-544.47,0.00022191,2]
[344367852,1733381444127,-500.0,0.00022191,2]
[344367853,1733381444137,-500.0,0.00022191,2]
[344367854,1733381444146,-500.0,0.00022191,2]
[344367855,1733381444156,-502.00068077,0.00022191,2]
[344367856,1733381444166,-500.0,0.00022191,2]
[344367857,1733381444175,-500.0,0.00022191,2]
[344367858,1733381444185,-500.0,0.00022191,2]
[344367859,1733381444195,-502.27067654,0.00022191,2]
[344367860,1733381444265,-500.0,0.00022191,2]
[344367861,1733381444275,-517.763482,0.00022191,2]
[344367862,1733381444285,-500.0,0.00022191,2]
[344367863,1733381444295,-500.0,0.00022191,2]
[344367864,1733381444304,-500.0,0.00022191,2]
[344367865,1733381444313,-500.0,0.00022191,2]
[344367866,1733381444325,-500.0,0.00022191,2]
[344367867,1733381444334,-500.0,0.00022191,2]
[344367868,1733381444347,-500.0,0.00022191,2]
[344367869,1733381444357,-500.0,0.00022191,2]
[344367870,1733381444366,-500.0,0.00022191,2]
[344367871,1733381444376,-505.94584447,0.00022191,2]
[344367872,1733381444385,-520.18232579,0.00022191,2]
[344367873,1733381444395,-525.90959262,0.00022191,2]
[344367874,1733381444404,-500.0,0.00022191,2]
[344367875,1733381444413,-500.0,0.00022191,2]
[344367876,1733381444423,-500.0,0.00022191,2]
[344367877,1733381444432,-500.0,0.00022191,2]
[344367878,1733381444442,-508.33032414,0.00022191,2]
[344367879,1733381444451,-500.0,0.00022191,2]
[344367880,1733381444461,-500.0,0.00022191,2]
[344367881,1733381444470,-354.18363802,0.00022191,2]
[344367882,1733381444479,-523.76250696,0.00022191,2]
[344367883,1733381444490,-504.16280801,0.00022191,2]
[344367884,1733381444500,-500.0,0.00022191,2]
[344367885,1733381444509,-500.0,0.00022191,2]
[344367886,1733381444518,-500.0,0.00022191,2]
[344367887,1733381444528,-865.56,0.00022191,2]
[344367888,1733381444538,-500.0,0.00022191,2]
[344367889,1733381444547,-503.99772552,0.00022191,2]
[344367890,1733381444556,-500.0,0.00022191,2]
[344367891,1733381444568,-500.0,0.00022191,2]
[344367892,1733381444580,-500.0,0.00022191,2]
[344367893,1733381444590,-500.0,0.00022191,2]
[344367894,1733381444599,-500.0,0.00022191,2]
[344367895,1733381444610,-500.0,0.00022191,2]
[344367896,1733381444619,-500.0,0.00022191,2]
[344367897,1733381444629,-500.0,0.00022191,2]
[344367898,1733381444638,-500.0,0.00022191,2]
[344367899,1733381444649,-500.0,0.00022191,2]
[344367900,1733381444660,-507.47879931,0.00022191,2]
[344367901,1733381444669,-500.0,0.00022191,2]
[344367902,1733381444678,-500.0,0.00022191,2]
[344367903,1733381444688,-501.95673382,0.00022191,2]
[344367904,1733381444697,-511.05284678,0.00022191,2]
[344367905,1733381444707,-500.0,0.00022191,2]
[344367906,1733381444716,-219.81155578,0.00022191,2]
[344367907,1733381444725,-500.0,0.00022191,2]
[344367908,1733381444735,-504.62967855,0.00022191,2]
[344367909,1733381444745,-500.0,0.00022191,2]
[344367910,1733381444754,-699.59,0.00022191,2]
[344367911,1733381444764,-500.0,0.00022191,2]
[344367912,1733381444773,-515.68558912,0.00022191,2]
[344367913,1733381444782,-500.0,0.00022191,2]
[344367914,1733381444792,-324.68490121,0.00022191,2]
[344367915,1733381444803,-500.0,0.00022191,2]
[344367916,1733381444812,-500.0,0.00022191,2]
[344367917,1733381444822,-500.0,0.00022191,2]
[344367918,1733381444831,-500.0,0.00022191,2]
[344367919,1733381444841,-500.0,0.00022191,2]
[344367920,1733381444850,-556.31165824,0.00022191,2]
[344367921,1733381444859,-500.55782249,0.00022191,2]
[344367922,1733381444869,-531.26,0.00022191,2]
[344367923,1733381444878,-500.0,0.00022191,2]
[344367924,1733381444887,-500.0,0.00022191,2]
[344367925,1733381444897,-500.0,0.00022191,2]
[344367926,1733381444906,-500.0,0.00022191,2]
[344367927,1733381444915,-504.87636706,0.00022191,2]
[344367928,1733381444924,-500.0,0.00022191,2]
[344367929,1733381444933,-500.0,0.00022191,2]
[344367930,1733381444942,-395.10980581,0.00022191,2]
[344367931,1733381444952,-500.0,0.00022191,2]
[344367932,1733381444961,-225.69074369,0.00022191,2]
[344367933,1733381444971,-500.0,0.00022191,2]
[344367934,1733381444981,-500.0,0.00022191,2]
[344367935,1733381444990,-500.0,0.00022191,2]
[344367936,1733381445000,-500.0,0.00022191,2]
[344367937,1733381445009,-538.95375761,0.00022191,2]
[344367938,1733381445019,-165.92060303,0.00022191,2]
[344367939,1733381445029,-500.0,0.00022191,2]
[344367940,1733381445039,-500.0,0.00022191,2]
[344367941,1733381445048,-281.37987722,0.00022191,2]
[344367942,1733381445058,-500.0,0.00022191,2]
[344367943,1733381445068,-9592.93,0.00022191,2]
[344367944,1733381445079,-500.0,0.00022191,2]
[344367945,1733381445088,-500.0,0.00022191,2]
[344367946,1733381445098,-500.0,0.00022191,2]
[344367947,1733381445107,-500.0,0.00022191,2]
[344367948,1733381445117,-500.0,0.00022191,2]
[344367949,1733381445127,-953.45,0.00022191,2]
[344367950,1733381445136,-534.89,0.00022191,2]